[Event "FTX Crypto Cup MCCT 2022"]
[Site "Miami"]
[Date "2022.08.11"]
[Round "7.1"]
[White "Le, Quang Liem"]
[Black "Niemann, Hans Moke"]
[Result "1-0"]
[ECO "E52"]
[WhiteElo "2722"]
[BlackElo "2688"]
[Annotator "TA"]
[PlyCount "85"]
[EventDate "2022.08.10"]
[EventType "tourn"]
[EventCountry "USA"]
[SourceTitle "playchess.com"]
[Source "ChessBase"]
[SourceQuality "1"]
[TimeControl "900+10"]

{[%evp 12,85,11,4,19,19,23,12,23,0,0,0,0,0,16,0,0,0,13,6,9,-16,0,0,0,0,0,0,0,-4,0,0,0,0,0,-26,-34,-50,-41,-47,-12,-24,-21,-142,-154,-268,-303,-415,-418,-375,-239,-243,-250,-233,-246,-420,-347,-338,-118,-117,58,0,0,0,144,125,531,497,722,718,703,695,671,689,628,637]} 1. d4 {[%emt 0:00:00]} Nf6 {[%emt 0:00:00]} 2. c4 {[%emt 0:00:02]} e6 {[%emt 0:00:02]} 3. Nc3 {[%emt 0:00:01]} Bb4 {[%emt 0:00:05]} 4. Nf3 {[%emt 0:00:02]} b6 {[%emt 0:01:24]} 5. e3 {[%emt 0:00:03]} O-O {[%emt 0:00:36]} 6. Bd3 {[%emt 0:00:03]} d5 {[%emt 0:00:01]} 7. O-O {[%emt 0:00:06]} Ba6 {[%emt 0:00:20] E52: Nimzo-Indian: Rubinstein: 4...0-0 5 Nf3 d5 6 Bd3 b6.} 8. cxd5 {[%emt 0:00:30]} exd5 {[%emt 0:00:00]} 9. Bxa6 {[%emt 0:00:12]} Nxa6 {[%emt 0:00:00] The position is equal.} 10. Qa4 {[%emt 0:00:08]} Qc8 {[%emt 0:00:03]} 11. Bd2 {[%emt 0:00:03]} Qb7 {[%emt 0:00:25] is recently more successful than 11...Re8.} 12. Rac1 {[%emt 0:00:11]} Bd6 {[%emt 0:02:21]} 13. Rfd1 {[%emt 0:01:18] [#]} c6 $146 {[%emt 0:00:38]} ({Predecessor:} 13... Rfe8 14. Be1 c6 15. Ne2 Rac8 16. Rc2 Ne4 17. Rdc1 Nb8 18. Ng3 Nxg3 19. hxg3 Re6 {½-½ (41) Zhang,Z (2414)-Yilmaz,M (2631) Qinhuangdao 2019}) 14. a3 {[%emt 0:00:38]} Rfc8 {[%emt 0:00:13]} 15. h3 {[%emt 0:01:03]} Nc7 {[%emt 0:00:46]} 16. Ne2 {[%emt 0:00:29]} Ne6 {[%emt 0:00:03]} 17. Bb4 {[%emt 0:00:28]} c5 {[%emt 0:00:21]} 18. dxc5 {[%emt 0:00:00]} bxc5 {[%emt 0:00:41]} 19. Bc3 {[%emt 0:00:03]} Ne4 {[%emt 0:00:03]} 20. Qc2 {[%emt 0:02:33]} Bc7 {[%emt 0:02:59]} 21. Be5 {[%emt 0:00:50]} Bxe5 {[%emt 0:00:42]} 22. Nxe5 {[%emt 0:00:00]} Rab8 {[%emt 0:00:09]} 23. Nd3 {[%emt 0:03:12]} c4 {[%emt 0:01:20]} 24. Nb4 {[%emt 0:00:19]} Rc5 {[%emt 0:01:10]} 25. Rb1 {[%emt 0:02:07]} h6 {[%emt 0:01:39]} 26. Nc3 {[%emt 0:00:52][%cal Rc3d5]} Nf6 {[%emt 0:00:39][%cal Be4f6,Bf6h5,Bh5g3][%mdl 32] ...a5 is the strong threat.} 27. Qe2 {[%emt 0:00:19]} (27. Qd2 $11) 27... d4 $1 $17 {[%emt 0:00:32]} 28. exd4 {[%emt 0:00:04]} (28. Rxd4 $17 Rg5 29. g3 Nxd4 30. exd4) 28... Rg5 $1 $19 {[%emt 0:01:02][%csl Gg5][%cal Rb7g2]} (28... Nf4 29. Qf3 Qxf3 30. gxf3 Rg5+ 31. Kf1 $17) 29. g3 {[%emt 0:00:49]} Nf4 $1 {[%emt 0:00:15][%csl Gf4][%cal Rb7g2]} (29... a5 30. Nc2 $17) 30. Qf1 {[%emt 0:00:01] Inhibits Qg2+.} N6h5 {[%emt 0:00:52]} 31. d5 {[%emt 0:00:45] [#] Threatens to win with Kh2.} Nxg3 $1 {[%emt 0:00:40][%mdl 512]} 32. fxg3 {[%emt 0:00:00]} Rxg3+ {[%emt 0:00:03]} 33. Kf2 $2 {[%emt 0:00:25]} (33. Kh2 Rxh3+ 34. Qxh3 Nxh3 35. Kxh3) 33... Rxh3 {[%emt 0:00:12]} 34. Qxc4 {[%emt 0:00:01]} Rh4 {[%emt 0:00:24]} (34... g5 35. Ne4 $11) (34... Qb6+ 35. Qd4 Rh2+ 36. Kf3 $11) (34... Rh2+ $1 $19 {is more deadly.} 35. Kf3 (35. Kg3 $2 Qd7 $19) 35... Ng6) 35. Rd4 $17 {[%emt 0:00:17]} g5 {[%emt 0:00:07]} (35... Rh2+ $1 $17 36. Kg1 (36. Kg3 $2 Qd7 $19) 36... Rg2+ 37. Kf1 (37. Kh1 $2 Qd7 $19) 37... Qd7 $1) 36. Qc6 {[%emt 0:01:36]} ({White should try} 36. Ne4 $1 $14 Rc8 37. Nc6 Nxd5 38. Qxd5 (38. Rxd5 Rxc6 39. Qd4 Rc2+ 40. Kg1 Rg4+ 41. Kh1 Rh4+ 42. Kg1 Rg4+ 43. Kh1 Rh4+ 44. Kg1 $11) 38... Rxc6 39. Kf3 (39. Qd8+ Kh7 $17)) 36... Qe7 $11 {[%emt 0:00:11] ( -> ...Rh2+)} 37. Re4 {[%emt 0:00:00]} Qf8 {[%emt 0:00:08] [#]} (37... Nd3+ $1 $11 38. Nxd3 Rxe4) 38. d6 $1 $16 {[%emt 0:00:15] Hoping for d7.} Rb6 $2 {[%emt 0:00:11][%mdl 8192] This costs Black the game.} (38... Rc8 $16 39. Qa6 Rh2+ 40. Kg1 Rd2) 39. Re8 $18 {[%emt 0:00:10] White is clearly winning.} Nd3+ {[%emt 0:00:07]} (39... Rh2+ $142 40. Ke3 Rh3+ 41. Ke4 f5+ 42. Kd4 Rxc6 43. Rxf8+ Kxf8) 40. Kg3 {[%emt 0:00:15]} ({Weaker is} 40. Nxd3 Rxc6 41. d7 {[#]} (41. Rxf8+ Kxf8 42. d7 Ke7 $14) 41... Rd4 $1 $14) 40... Rxc6 {[%emt 0:00:05]} 41. Rxf8+ {[%emt 0:00:01]} Kxf8 {[%emt 0:00:00]} 42. Nxc6 {[%emt 0:00:01] Black must now prevent d7.} Nc5 {[%emt 0:00:23]} 43. Re1 {[%emt 0:00:17] Weighted Error Value: White=0.26 (precise) /Black=0.50} 1-0

[Event "FTX Crypto Cup MCCT 2022"]
[Site "Miami"]
[Date "2022.08.11"]
[Round "7.2"]
[White "Firouzja, Alireza"]
[Black "Aronian, Levon"]
[Result "1/2-1/2"]
[ECO "C88"]
[WhiteElo "2793"]
[BlackElo "2775"]
[Annotator "TA"]
[PlyCount "119"]
[EventDate "2022.08.10"]
[EventType "tourn"]
[EventCountry "USA"]
[SourceTitle "playchess.com"]
[Source "ChessBase"]
[SourceQuality "1"]
[TimeControl "900+10"]

{[%evp 23,119,14,20,17,17,17,16,18,16,2,2,0,0,-39,12,0,5,18,10,14,42,52,31,26,37,25,39,27,37,24,39,38,41,0,0,0,0,0,7,0,0,0,0,0,25,0,0,0,0,0,53,60,227,227,227,227,235,185,188,150,150,151,188,188,445,59,59,59,59,59,29966,29967,29967,29968,29968,29968,29966,0,0,0,0,0,0,0,0,0,0,0,0,0,0,0,0,0,0,0,0,0]} 1. e4 {[%emt 0:00:00]} e5 {[%emt 0:00:00]} 2. Nf3 {[%emt 0:00:02]} Nc6 {[%emt 0:00:04]} 3. Bb5 {[%emt 0:00:01]} a6 {[%emt 0:00:03]} 4. Ba4 {[%emt 0:00:01]} Nf6 {[%emt 0:00:02]} 5. O-O {[%emt 0:00:01]} Be7 {[%emt 0:00:02]} 6. d3 {[%emt 0:00:03]} b5 {[%emt 0:00:05]} 7. Bb3 {[%emt 0:00:01]} d6 {[%emt 0:00:08]} 8. c3 {[%emt 0:00:01]} O-O {[%emt 0:00:14]} 9. h3 {[%emt 0:00:02]} Re8 {[%emt 0:00:32]} 10. Re1 {[%emt 0:00:31]} Bf8 {[%emt 0:00:09]} 11. Nbd2 {[%emt 0:00:54]} h6 {[%emt 0:00:23]} 12. d4 {[%emt 0:00:15]} Bb7 {[%emt 0:00:10]} 13. Bc2 {[%emt 0:00:09] C88: Closed Ruy Lopez: Anti-Marshall Systems.} Nb8 {[%emt 0:00:37]} 14. b3 {[%emt 0:00:07]} Nbd7 {[%emt 0:00:16]} 15. Bb2 {[%emt 0:00:02] [#]} c6 $146 {[%emt 0:00:15]} ({Predecessor:} 15... Rc8 16. a4 c6 17. Bd3 Nh5 18. Bf1 Nf4 19. g3 Ne6 20. h4 Qb6 21. Bh3 exd4 22. Nxd4 {½-½ (34) Straka,J (2019)-Preussner,M (2091) ICCF email 2020}) 16. c4 {[%emt 0:01:00]} exd4 {[%emt 0:00:07]} 17. Nxd4 {[%emt 0:00:11]} g6 {[%emt 0:00:13]} 18. cxb5 {[%emt 0:02:42]} axb5 {[%emt 0:00:03]} (18... cxb5 $15 19. N4f3 Nh5) 19. a4 $11 {[%emt 0:00:01]} bxa4 {[%emt 0:01:53]} 20. bxa4 {[%emt 0:00:02]} Bg7 {[%emt 0:00:55]} 21. Nc4 {[%emt 0:00:43]} Nb6 {[%emt 0:00:03]} 22. Nxb6 {[%emt 0:00:36]} (22. Ne3 {looks sharper.} c5 23. Nb5 Bxe4 24. Bb3) 22... Qxb6 {[%emt 0:00:00]} 23. Rb1 {[%emt 0:00:01][%cal Od4f5] aiming for Nf5!} Qc7 {[%emt 0:00:30]} 24. Bc3 {[%emt 0:00:32]} Ba6 {[%emt 0:00:03]} 25. Nf3 {[%emt 0:01:52]} d5 {[%emt 0:00:45]} 26. exd5 {[%emt 0:00:18]} Rxe1+ {[%emt 0:00:22]} 27. Nxe1 {[%emt 0:00:23]} Rd8 {[%emt 0:01:37]} 28. Bxf6 {[%emt 0:01:03]} Bxf6 {[%emt 0:00:10]} 29. Qf3 {[%emt 0:00:02][%csl LRc6,LRf6]} Rd6 {[%emt 0:00:10]} 30. dxc6 {[%emt 0:00:19]} Qxc6 {[%emt 0:00:51]} 31. Qxc6 {[%emt 0:01:09]} (31. Bb3 {seems wilder.} Kg7 32. Rd1 Qxf3 33. Nxf3 Rb6 34. Ba2) 31... Rxc6 {[%emt 0:00:00]} 32. Bd3 {[%emt 0:00:11]} Bxd3 {[%emt 0:02:05]} 33. Nxd3 {[%emt 0:00:02][%mdl 4096] Endgame KRB-KRN} Rc4 {[%emt 0:00:00]} (33... Rc3 $5 {[%cal Rc3d3]} 34. Nf4 Be5 $11) 34. a5 {[%emt 0:01:23]} (34. Rb4 $5 {[%cal Rb4c4]} Rc3 35. Nf4 $14) 34... Ra4 {[%emt 0:00:42]} 35. Rb6 {[%emt 0:00:10]} Kg7 {[%emt 0:00:26]} 36. a6 {[%emt 0:00:11]} Ra3 {[%emt 0:00:02]} (36... Bd4 $11 37. Rc6 Kf8) 37. Rd6 $14 {[%emt 0:00:28]} Kf8 $2 {[%emt 0:01:01]} 38. Rxf6 $18 {[%emt 0:00:38]} Rxd3 {[%emt 0:00:02] KR-KR} 39. Kf1 {[%emt 0:00:11]} ({And not} 39. a7 Ra3 $11) 39... Rd2 {[%emt 0:00:25]} 40. Rb6 {[%emt 0:00:22]} ({Weaker is} 40. a7 Ra2 $11) 40... Ra2 {[%emt 0:00:04]} 41. g4 {[%emt 0:02:44]} h5 {[%emt 0:00:01]} 42. g5 {[%emt 0:01:25]} h4 {[%emt 0:00:01] [#]} 43. Ke1 $1 {[%emt 0:00:30] Kd1 is the strong threat.} Kg7 $2 {[%emt 0:00:12]} (43... Ke7 44. f4 Rh2) 44. Rf6 $2 {[%emt 0:00:11]} (44. Kd1 $18 Kf8 45. Kc1) 44... Ra5 $1 $14 {[%emt 0:00:08]} 45. f4 {[%emt 0:00:09]} Ra3 {[%emt 0:00:02]} 46. Rb6 {[%emt 0:00:13]} Rxh3 $2 {[%emt 0:00:02][%mdl 8192] [#]} (46... Kh7 $14) 47. a7 {[%emt 0:00:17]} Ra3 {[%emt 0:00:08]} 48. Rb7 {[%emt 0:00:01]} Ra4 {[%emt 0:00:06]} 49. Ke2 {[%emt 0:00:12]} h3 {[%emt 0:00:02]} 50. Kf3 $2 {[%emt 0:00:03]} (50. Kf2 {mates} Rxf4+ 51. Kg3 Ra4 52. Kxh3 Ra3+ 53. Kg4 Ra5 54. Kh3 Ra3+ 55. Kh4) 50... Ra2 $11 {[%emt 0:00:02] The position is equal.} 51. Kg3 {[%emt 0:00:22]} h2 {[%emt 0:00:01]} 52. Rb1 {[%emt 0:00:01]} Rxa7 {[%emt 0:00:01]} 53. Kxh2 {[%emt 0:00:00]} f6 {[%emt 0:00:01]} 54. gxf6+ {[%emt 0:00:01]} Kxf6 {[%emt 0:00:00]} 55. Kg3 {[%emt 0:00:01]} Ra2 {[%emt 0:00:06]} 56. Rb6+ {[%emt 0:00:05]} Kf5 {[%emt 0:00:02]} 57. Rb5+ {[%emt 0:00:00]} Kf6 {[%emt 0:00:01]} 58. Rb6+ {[%emt 0:00:00]} Kf5 {[%emt 0:00:00]} 59. Rb5+ {[%emt 0:00:01]} Kf6 {[%emt 0:00:01]} 60. Rb6+ {[%emt 0:00:00] Weighted Error Value: White=0.31/Black=0.33} 1/2-1/2

[Event "FTX Crypto Cup MCCT 2022"]
[Site "Miami"]
[Date "2022.08.11"]
[Round "7.2"]
[White "Giri, Anish"]
[Black "Duda, Jan-Krzysztof"]
[Result "0-1"]
[ECO "A18"]
[WhiteElo "2760"]
[BlackElo "2750"]
[Annotator "TA"]
[PlyCount "52"]
[EventDate "2022.08.10"]
[EventType "tourn"]
[EventCountry "USA"]
[SourceTitle "playchess.com"]
[Source "ChessBase"]
[SourceQuality "1"]
[TimeControl "900+10"]

{[%evp 17,52,15,22,6,8,0,18,52,24,-80,-88,-77,-89,-84,0,0,51,0,0,0,-1,-99,-91,-324,-322,-365,-130,-712,-712,-632,-695,-681,-679,-664,-646,-620,-613]} 1. c4 {[%emt 0:00:00] Bulletin} e6 {[%emt 0:00:00]} 2. Nc3 {[%emt 0:00:02]} Nf6 {[%emt 0:00:04]} 3. e4 {[%emt 0:00:07]} d5 {[%emt 0:00:01]} 4. e5 {[%emt 0:00:01]} d4 {[%emt 0:00:01]} 5. exf6 {[%emt 0:00:01]} dxc3 {[%emt 0:00:02]} 6. bxc3 {[%emt 0:00:01]} Qxf6 {[%emt 0:00:01]} 7. Nf3 {[%emt 0:00:02]} c5 {[%emt 0:00:02]} 8. d4 {[%emt 0:00:02]} h6 {[%emt 0:00:17]} 9. Bd3 {[%emt 0:01:26]} Nc6 {[%emt 0:00:06][%cal Rc5d4]} 10. Rb1 {[%emt 0:01:24] A18: English Opening: Flohr-Mikenas System (1 c4 Nf6 2 Nc3 e6 3 e4).} cxd4 {[%emt 0:00:42]} 11. cxd4 {[%emt 0:00:01]} Nxd4 {[%emt 0:00:39]} 12. Nxd4 {[%emt 0:00:07] The position is equal.} Qxd4 {[%emt 0:00:00] [#]} 13. Bb2 $146 {[%emt 0:01:18]} (13. O-O $11 {remains equal.}) ({Predecessor:} 13. O-O Bd6 14. Bb2 Qh4 15. g3 Qg5 16. h4 Qe7 17. Qg4 f6 18. Bg6+ Kf8 19. Rbd1 b5 20. Rxd6 Qxd6 21. Qf3 {1-0 (21) Cox,J (2345)-Richmond,P Southport/ Merseyside 1983 EXT 1999 [Bulletin]}) 13... Bb4+ $17 {[%emt 0:01:02]} 14. Kf1 {[%emt 0:00:03]} Bc3 {[%emt 0:00:04] Black is more active.} 15. Ba3 {[%emt 0:00:19]} Bd7 {[%emt 0:00:09]} (15... b6 $1 $17 16. Rc1 Bb2 17. Bxb2 Qxb2) 16. Rxb7 $11 {[%emt 0:00:43]} g5 {[%emt 0:04:46]} (16... h5 $1 $11) 17. Qb1 {[%emt 0:02:03]} (17. Qf3 $14 Rc8 18. h3) 17... Rd8 {[%emt 0:01:43]} 18. h4 {[%emt 0:02:18] Threatens to win with Rh3.} g4 {[%emt 0:00:04] Prevents Rh3.} 19. h5 {[%emt 0:01:36]} (19. g3 $1 $11) 19... Rg8 {[%emt 0:01:31] ...Rg5 is the strong threat.} 20. g3 $2 {[%emt 0:01:25]} (20. Rh4 $17 {only move.}) 20... Rg5 $1 $19 {[%emt 0:00:16]} 21. Be2 {[%emt 0:04:40] [#]} Re5 $2 $40 {[%emt 0:00:17][%mdl 128] Black goes for the king. Really sharp!} ({Not} 21... Rf5 22. Rh2 $17) (21... Ra5 $1 $19 {[%cal Ra5a3] and Black stays clearly on top.} 22. Bb2 (22. Qh7 $2 Rxa3 23. Qg8+ Ke7 $19) 22... Bxb2 23. Rxb2 Bc6) 22. Rh4 $2 {[%emt 0:00:53][%mdl 8192] [#] White does not recover from this.} (22. Qh7 {[#] is a self mate.} Qd1+ $3 {[%mdl 512]} 23. Bxd1 Re1+ 24. Kg2 Bc6+) (22. Qc2 $17) 22... Rxe2 $1 {[%emt 0:00:25][%mdl 512] Black is clearly winning.} 23. Kxe2 {[%emt 0:00:08]} Qxc4+ {[%emt 0:00:01]} 24. Qd3 {[%emt 0:00:11]} Qxa2+ {[%emt 0:00:04]} 25. Kf1 {[%emt 0:00:15]} Qxa3 {[%emt 0:00:30]} 26. Rxg4 {[%emt 0:00:11] And now Rg8+ would win.} Qc1+ {[%emt 0:00:01] Weighted Error Value: White=0.94/Black=0.29 (precise)} 0-1

[Event "FTX Crypto Cup MCCT 2022"]
[Site "Miami"]
[Date "2022.08.11"]
[Round "7.2"]
[White "Niemann, Hans Moke"]
[Black "Le, Quang Liem"]
[Result "1-0"]
[ECO "C50"]
[WhiteElo "2688"]
[BlackElo "2722"]
[Annotator "TA"]
[PlyCount "115"]
[EventDate "2022.08.10"]
[EventType "tourn"]
[EventCountry "USA"]
[SourceTitle "playchess.com"]
[Source "ChessBase"]
[SourceQuality "1"]
[TimeControl "900+10"]

{[%evp 9,115,8,20,6,18,-6,14,20,12,0,9,12,8,-7,11,0,14,9,0,0,0,0,0,0,0,0,0,0,0,0,11,-22,0,0,12,10,41,37,35,15,19,10,14,18,51,30,110,108,86,99,106,111,120,115,261,189,297,245,290,160,160,165,165,162,169,116,130,124,134,126,135,134,156,143,274,287,327,357,332,260,334,342,1977,1927,12831,2219,1858,1587,1052,1052,12837,12838,12838,12839,12840,12840,12843,12840,12842,12840,12844,12844,12845,12844,29982,29983,29982,12847]} 1. e4 {[%emt 0:00:00]} e5 {[%emt 0:00:00]} 2. Nf3 {[%emt 0:00:02]} Nc6 {[%emt 0:00:01]} 3. Bc4 {[%emt 0:00:01]} Nf6 {[%emt 0:00:02]} 4. d3 {[%emt 0:00:01]} Bc5 {[%emt 0:00:00]} 5. Nc3 {[%emt 0:00:01]} a6 {[%emt 0:00:04]} 6. a4 {[%emt 0:00:14] C50: Hungarian Defence and Giuoco Pianissimo.} d6 {[%emt 0:00:04]} 7. Be3 $1 {[%emt 0:00:20][%mdl 4] outshines the older 7.h3.} O-O {[%emt 0:00:10]} 8. Bxc5 {[%emt 0:00:03] The position is equal.} dxc5 {[%emt 0:00:00] [#]} 9. h3 $146 {[%emt 0:00:13] Against Bg4} ({Predecessor:} 9. O-O Bg4 10. Qe2 Nd4 11. Qd1 Nh5 12. Nd5 Nf4 13. Nxf4 exf4 14. c3 Nxf3+ 15. gxf3 {1-0 (22) Marcos Rodriguez,R (1354)-Garcia Raschke,H (1142) Barcelona 2019}) 9... b6 {[%emt 0:00:38]} 10. O-O {[%emt 0:00:04]} Qd6 {[%emt 0:00:41]} 11. Nd2 {[%emt 0:00:19]} Bd7 {[%emt 0:01:10]} 12. Ba2 {[%emt 0:00:15]} Nb4 {[%emt 0:00:17]} 13. Nc4 {[%emt 0:00:04]} Qe7 {[%emt 0:00:02]} 14. Bb3 {[%emt 0:00:25]} Be6 {[%emt 0:00:18]} 15. Ra3 {[%emt 0:00:03]} Nc6 {[%emt 0:00:58]} 16. Ne3 {[%emt 0:00:18]} Bxb3 {[%emt 0:00:05]} 17. Rxb3 {[%emt 0:00:04]} Nd4 {[%emt 0:00:02]} 18. Ra3 {[%emt 0:00:03]} c6 {[%emt 0:00:29]} 19. Ne2 {[%emt 0:00:10]} g6 {[%emt 0:00:30]} 20. Qd2 {[%emt 0:01:45]} Rad8 {[%emt 0:00:20][%cal Of6e4]} 21. Nxd4 {[%emt 0:00:26]} Rxd4 {[%emt 0:00:17]} 22. Qe2 {[%emt 0:00:26]} Rfd8 {[%emt 0:00:04]} (22... Nh5 {feels hotter.} 23. Nf5 gxf5 24. Qxh5 f4) 23. Raa1 {[%emt 0:00:08]} Nh5 {[%emt 0:03:08]} 24. g3 {[%emt 0:00:04]} Ng7 {[%emt 0:00:06]} 25. b3 {[%emt 0:00:11]} Ne6 {[%emt 0:00:13]} 26. Rae1 {[%emt 0:00:48]} Qc7 {[%emt 0:00:19]} (26... b5 {looks sharper.} 27. f4 exf4 28. gxf4 bxa4 29. f5 Ng5) 27. Qg4 {[%emt 0:00:36]} b5 {[%emt 0:02:59]} (27... Rf8 $11) 28. axb5 $16 {[%emt 0:00:04]} axb5 {[%emt 0:00:00]} 29. f4 $1 {[%emt 0:01:01]} exf4 {[%emt 0:00:04]} 30. gxf4 {[%emt 0:00:05]} Ng7 {[%emt 0:00:01]} 31. Qg5 {[%emt 0:01:23]} Qb6 {[%emt 0:00:44]} (31... Kh8 $16 32. Ng4 (32. Qxc5 Ne6 $16) 32... R4d6) 32. Kh1 {[%emt 0:00:44] Strongly threatening Ng4.} c4 {[%emt 0:00:53]} (32... Rf8 {was necessary.} 33. Ng4 Qd8) 33. bxc4 {[%emt 0:00:03] Ng4 is the strong threat.} bxc4 {[%emt 0:00:01]} 34. Nxc4 {[%emt 0:00:04]} ({White should play} 34. f5 $18 Qc7 35. Nxc4) 34... Rxc4 {[%emt 0:00:02]} 35. dxc4 {[%emt 0:00:01]} Qd4 {[%emt 0:00:04]} 36. f5 {[%emt 0:01:01]} Re8 {[%emt 0:00:04]} 37. f6 {[%emt 0:01:23]} (37. Qg4 $18) 37... Ne6 {[%emt 0:00:53]} 38. Qe3 {[%emt 0:00:10]} Qxc4 {[%emt 0:00:03] [#]} 39. Rf2 $1 {[%emt 0:00:14]} Qb5 {[%emt 0:00:50]} 40. e5 {[%emt 0:00:10]} Qb4 {[%emt 0:00:13]} 41. Rd1 {[%emt 0:00:36][%cal Be1d1,Bd1g1,Bg1g4][%mdl 32]} g5 {[%emt 0:00:25]} (41... h6 $16 {is a better defense.} 42. c3 (42. Qxh6 Qe4+ 43. Kg1 Qxe5 $16) 42... Qc4) 42. Rg1 $18 {[%emt 0:00:15] Black must now prevent Rxg5+.} Kh8 {[%emt 0:00:59]} 43. Rg4 {[%emt 0:00:09]} Qb1+ {[%emt 0:00:05] [#]} 44. Kh2 $1 {[%emt 0:00:03]} Ra8 {[%emt 0:01:03]} 45. Rd2 {[%emt 0:02:01] aiming for Rxg5.} Qf1 $2 {[%emt 0:00:53]} (45... Rg8 46. h4 Qf1 47. hxg5 Qf5) 46. Rxg5 {[%emt 0:00:43]} Ra3 {[%emt 0:00:44]} 47. Qxa3 {[%emt 0:01:10]} (47. Rd8+ $142 Nxd8 48. Qxa3 Qe2+ 49. Kg3 Qe1+ 50. Kg4 Qd1+ 51. Kh4) 47... Qf4+ {[%emt 0:00:02]} 48. Kh1 {[%emt 0:00:52][%cal Od2d8] White wants to mate with Rd8+!} Qxd2 {[%emt 0:00:03][%mdl 4096] Endgame KQR-KQN} 49. Rg2 {[%emt 0:00:32]} Qe1+ {[%emt 0:00:34]} 50. Kh2 {[%emt 0:00:03][%cal Bh1h2,Bh2g3,Bg3g4,Bg4f5][%mdl 32]} Qxe5+ {[%emt 0:00:34]} 51. Qg3 {[%emt 0:00:03]} Qxg3+ {[%emt 0:00:03]} 52. Kxg3 {[%emt 0:00:08] KR-KN} Kg8 {[%emt 0:00:02]} 53. Rd2 {[%emt 0:00:16]} h6 {[%emt 0:00:05]} 54. Kg4 {[%emt 0:00:13]} c5 {[%emt 0:00:06]} 55. c3 {[%emt 0:00:05] Kf5 would kill now.} Ng5 {[%emt 0:00:12]} 56. Re2 {[%emt 0:00:15]} Kh7 {[%emt 0:00:15]} 57. h4 {[%emt 0:00:02]} Ne6 {[%emt 0:00:06]} 58. Kf5 {[%emt 0:00:08] Weighted Error Value: White=0.11 (very precise) /Black=0.42} 1-0